bitfinex-derivatives/quotes_SOLF0:USTF0_20241027
["timestamp","ask_amount","ask_price","bid_price","bid_amount"]
[1730011804899,15.02364792,172.93,172.88,2.8954]
[1730011808713,15.02364792,172.93,172.89,2.8953]
[1730011809114,12.12894792,172.93,172.87,8.02894792]
[1730011809317,12.12894792,172.93,172.9,2.895]
[1730011811516,12.12894792,172.94,172.89,8.02894792]
[1730011814218,12.12894792,172.94,172.91,2.8948]
[1730011815721,12.12894792,172.94,172.92,2.8948]
[1730011816318,8.02894792,172.94,172.92,2.8948]
[1730011819013,5.3926,172.95,172.92,2.8948]
[1730011819316,4.1,172.95,172.92,2.8948]
[1730011819927,4.1,172.95,172.93,2.8946]
[1730011820126,4.1,172.96,172.92,8.02894792]
[1730011820818,1.2103,173.01,172.92,8.02894792]
[1730011821012,4.1,173.0,172.93,8.02894792]
[1730011821318,8.02894792,172.99,172.93,8.02894792]
[1730011821517,10.92264792,172.99,172.95,2.8942]
[1730011830718,4.1,173.0,172.93,8.02894792]
[1730011830919,8.02894792,172.99,172.96,2.894]
[1730011831721,8.02894792,173.02,172.96,8.02894792]
[1730011831927,12.10894792,173.02,172.96,8.02894792]
[1730011832130,15.00214792,173.02,172.98,2.8936]
[1730011832431,12.10894792,173.02,172.96,8.02894792]
[1730011832827,15.00204792,173.02,172.98,2.8937]
[1730011833224,8.02894792,172.99,172.9,1.44774873]
[1730011833423,8.02894792,172.99,172.96,2.894]
[1730011833830,4.08,173.02,172.96,2.894]
[1730011834027,8.02894792,173.0,172.96,2.894]
[1730011835934,8.02894792,173.0,172.97,2.8939]
[1730011839833,2.87554088,173.1,172.96,8.02894792]
[1730011840034,10.92204792,173.02,172.96,8.02894792]
[1730011840230,4.08,173.01,172.96,8.02894792]
[1730011841349,4.08,173.01,172.98,2.8938]
[1730011842138,8.02894792,173.0,172.96,2.894]
[1730011842943,8.02894792,173.0,172.94,8.02894792]
[1730011843139,8.02894792,173.0,172.96,2.894]
[1730011844435,4.08,173.0,172.96,2.894]
[1730011844635,12.10894792,173.0,172.96,2.894]
[1730011846046,12.10894792,173.0,172.88,2.5805]
[1730011846352,8.02894792,172.96,172.91,8.02894792]
[1730011846540,12.10894792,172.96,172.88,2.5805]
[1730011846842,15.00314792,172.96,172.91,2.8948]
[1730011847640,15.00314792,172.96,172.92,2.8948]
[1730011849447,4.08,172.96,172.92,8.02894792]
[1730011849649,4.08,172.96,172.94,2.8944]
[1730011860362,4.06,172.97,172.94,2.8944]
[1730011864459,10.92334792,172.95,172.9,2.895]
[1730011864663,8.02894792,172.95,172.89,8.02894792]
[1730011866466,10.92324792,172.95,172.91,2.8948]
[1730011868962,8.02894792,172.94,172.84,2.5238]
[1730011869173,4.06,172.93,172.87,8.02894792]
[1730011869867,8.02894792,172.92,172.87,8.02894792]
[1730011870274,10.92374792,172.92,172.88,2.8954]
[1730011871468,8.02894792,172.92,172.87,10.92454792]
[1730011871671,2.895,172.91,172.87,10.92454792]
[1730011872566,8.02894792,172.92,172.87,10.92454792]
[1730011872567,10.92374792,172.92,172.87,10.92454792]
[1730011873363,10.92374792,172.92,172.88,2.8954]
[1730011876371,4.06,172.93,172.89,2.8953]
[1730011876372,14.98364792,172.93,172.89,2.8953]
[1730011876572,12.08894792,172.93,172.89,2.8953]
[1730011878375,10.92374792,172.92,172.89,2.8953]
[1730011882667,2.8952,172.9,172.86,2.8957]
[1730011883181,4.06,172.89,172.86,2.8957]
[1730011887076,12.08894792,172.89,172.86,2.8957]
[1730011887380,12.08894792,172.89,172.83,8.02894792]
[1730011887581,8.02894792,172.86,172.79,2.4923]
[1730011887890,8.02894792,172.86,172.81,8.02894792]
[1730011888186,8.02894792,172.86,172.82,6.5517757]
[1730011888477,8.02894792,172.87,172.82,8.02894792]
[1730011888981,8.02894792,172.87,172.83,5.10292469]
[1730011889186,8.02894792,172.87,172.82,8.02894792]
[1730011889489,10.92464792,172.87,172.83,2.8963]
[1730011889685,2.8957,172.87,172.83,10.92524792]
[1730011890576,3.6177,172.99,172.83,8.02894792]
[1730011890777,8.02894792,172.91,172.85,8.02894792]
[1730011890977,4.04,172.9,172.79,2.4923]
[1730011891181,4.04,172.9,172.85,8.02894792]
[1730011891587,6.9351,172.9,172.86,2.8958]
[1730011893084,14.96404792,172.9,172.86,2.8958]
[1730011895483,8.02894792,172.91,172.86,8.02894792]
[1730011895675,4.04,172.9,172.89,2.8953]
[1730011896080,8.02894792,172.92,172.89,2.8953]
[1730011896081,12.06894792,172.92,172.89,2.8953]
[1730011896786,12.06894792,172.92,172.88,8.02894792]
[1730011896988,4.04,172.92,172.89,8.02894792]
[1730011897486,3.6177,172.99,172.91,8.02894792]
[1730011897681,3.6177,172.99,172.87,4.04]
[1730011897682,4.04,172.98,172.94,8.02894792]
[1730011897877,5.2797,172.99,172.94,8.02894792]
[1730011899284,5.2797,172.99,172.95,2.8942]
[1730011901081,5.2797,172.99,172.94,8.02894792]
[1730011902085,5.2797,172.99,172.94,10.92324792]
[1730011903382,8.1734,172.99,172.94,10.92324792]
[1730011905485,10.92314792,172.96,172.92,2.8948]
[1730011905685,8.02894792,172.94,172.89,8.02894792]
[1730011905887,8.02894792,172.92,172.87,8.02894792]
[1730011906087,8.02894792,172.92,172.89,2.8952]
[1730011906390,8.02894792,172.92,172.87,8.02894792]
[1730011906592,8.02894792,172.92,172.88,5.09596886]
[1730011906787,8.02894792,172.92,172.87,8.02894792]
[1730011906987,8.02894792,172.92,172.88,6.54370534]
[1730011907183,8.02894792,172.92,172.87,8.02894792]
[1730011907386,12.06894792,172.94,172.89,8.02894792]
[1730011908397,12.06894792,172.94,172.9,2.8951]
[1730011909194,10.92354792,172.93,172.88,2.8953]
[1730011909895,10.92354792,172.93,172.87,8.02894792]
[1730011910091,8.02894792,172.93,172.89,2.8953]
[1730011910583,8.02894792,172.93,172.87,8.02894792]
[1730011910784,8.02894792,172.93,172.88,5.09764254]
[1730011910990,8.02894792,172.93,172.87,8.02894792]
[1730011911696,10.92354792,172.93,172.88,2.8953]
[1730011912596,10.92354792,172.93,172.89,2.8953]
[1730011913495,8.02894792,172.93,172.89,2.8953]
[1730011915095,4.04,172.93,172.9,2.895]
[1730011917787,4.04,172.93,172.89,8.02894792]
[1730011917993,4.04,172.93,172.9,8.02894792]
[1730011919399,4.04,172.93,172.91,2.8949]
[1730011928708,4.04,172.93,172.9,8.02894792]
[1730011928905,14.96314792,172.96,172.92,2.8948]
[1730011930206,14.96314792,172.96,172.9,8.02894792]
[1730011930397,14.96314792,172.96,172.91,2.8949]
[1730011930800,1.2397,172.99,172.9,8.02894792]
[1730011931004,14.96284792,172.98,172.93,2.8945]
[1730011931401,12.06894792,172.98,172.93,2.8945]
[1730011931614,2.894,172.97,172.93,2.8945]
[1730011932509,4.04,172.96,172.93,2.8945]
[1730011939208,4.04,172.96,172.93,2.8946]
[1730011946829,2.8944,172.95,172.86,4.04]
[1730011947024,8.02894792,172.94,172.89,8.02894792]
[1730011947621,8.02894792,172.94,172.9,2.895]
[1730011951129,10.92314792,172.96,172.91,2.8948]
[1730011951423,4.0,172.96,172.92,8.02894792]
[1730011951831,4.0,172.96,172.93,2.8945]
[1730011955928,4.0,172.96,172.86,4.04]
[1730011956130,4.0,172.96,172.92,2.8948]
[1730011959438,12.02894792,172.96,172.92,2.8948]
[1730011971742,21.3099478,172.85,172.77,15.27923224]
[1730011971949,12.02894792,172.96,172.84,8.02894792]
[1730011972150,12.02894792,172.96,172.9,8.02894792]
[1730011972348,12.02894792,172.96,172.91,6.55999078]
[1730011972546,12.02894792,172.96,172.92,6.55999078]
[1730011972748,12.02894792,172.96,172.9,8.02894792]
[1730011973146,12.02894792,172.96,172.92,2.8947]
[1730011975253,4.0,172.96,172.95,2.8943]
[1730011975457,4.0,172.96,172.91,8.02894792]
[1730011975749,4.0,172.96,172.93,8.02894792]
[1730011975945,4.0,172.96,172.94,6.55823639]
[1730011976144,4.0,172.96,172.93,8.02894792]
[1730011976353,4.0,172.96,172.94,6.55809552]
[1730011976556,4.0,172.96,172.93,8.02894792]
[1730011976854,4.0,172.96,172.94,6.55807917]
[1730011977050,4.0,172.96,172.93,8.02894792]
[1730011977256,4.0,172.96,172.94,9.45229365]
[1730011977457,4.0,172.96,172.94,2.8944]
[1730011980255,4.0,172.96,172.93,8.02894792]
[1730011980444,4.0,172.97,172.94,6.55764934]
[1730011980647,4.0,172.98,172.95,5.10998966]
[1730011980848,4.0,172.98,172.93,8.02894792]
[1730011981149,4.0,172.98,172.94,6.55756046]
[1730011981443,4.0,172.98,172.95,9.45176046]
[1730011981649,4.0,172.98,172.95,2.8942]
[1730011982451,14.92274792,172.98,172.94,2.8944]
[1730011982855,8.02894792,172.96,172.88,2.436]
[1730011983046,8.02894792,172.96,172.9,8.02894792]
[1730011983246,8.02894792,172.96,172.91,6.5582123]
[1730011983447,8.02894792,172.96,172.92,6.5582123]
[1730011983654,8.02894792,172.96,172.93,5.11045249]
[1730011984256,8.02894792,172.96,172.93,2.8946]
[1730011985354,4.0,172.95,172.93,2.8946]
[1730011989360,4.0,172.95,172.94,5.11209089]
[1730011993261,4.0,172.95,172.94,6.55983712]
[1730011994562,4.0,172.95,172.94,6.56112985]
[1730011994765,4.0,172.95,172.94,5.11338362]
[1730011994962,4.0,172.95,172.93,2.8946]
[1730011995165,4.0,172.95,172.94,6.56096117]
[1730011998563,4.0,172.95,172.94,5.11320263]
[1730011998965,4.0,172.95,172.94,6.56096104]
[1730012000268,4.0,172.95,172.94,1.44775841]
[1730012000568,4.0,172.95,172.94,6.56077853]
[1730012002358,4.0,172.95,172.93,2.8946]
[1730012002560,4.0,172.95,172.94,6.55902543]
[1730012005868,4.0,172.95,172.94,1.44762955]
[1730012006165,4.0,172.97,172.94,6.55822461]
[1730012006372,4.0,172.97,172.95,6.55822461]
[1730012006561,4.0,172.97,172.93,2.8946]
[1730012006868,4.0,172.97,172.94,9.45237399]
[1730012007069,4.0,172.97,172.95,6.55797399]
[1730012007262,4.0,172.97,172.94,2.8944]
[1730012007463,4.0,172.97,172.95,6.55773981]
[1730012007761,4.0,172.97,172.94,2.8944]
[1730012007959,4.0,172.97,172.95,6.55662424]
[1730012008162,4.0,172.97,172.94,2.8944]
[1730012008366,4.0,172.97,172.95,6.55636341]
[1730012008671,4.0,172.97,172.94,2.8944]
[1730012008866,4.0,172.97,172.95,6.55636444]
[1730012009063,4.0,172.97,172.94,2.8944]
[1730012009264,4.0,172.97,172.95,6.55605472]
[1730012009461,91.06736261,173.08,172.88,2.436]
[1730012009661,8.02894792,173.01,172.98,2.8938]
[1730012009868,4.0,173.0,172.98,2.8938]
[1730012014470,12.02894792,173.0,172.98,2.8938]
[1730012028689,4.0,173.0,172.98,2.8938]
[1730012035899,4.0,173.02,172.98,8.02894792]
[1730012036289,4.0,173.03,172.98,8.02894792]
[1730012036785,4.0,173.03,173.01,2.8932]
[1730012037187,12.02894792,173.03,173.01,2.8932]
[1730012046495,4.0,173.03,173.01,2.8932]
[1730012048102,4.0,173.03,173.02,10.92204792]
[1730012049702,4.0,173.05,173.02,10.92204792]
[1730012049893,4.0,173.05,173.03,2.8928]
[1730012051694,2.8921,173.08,173.03,2.8928]
[1730012051695,2.8919,173.1,173.04,2.8926]
[1730012051894,8.02894792,173.08,173.04,2.8926]
[1730012052101,12.02894792,173.08,173.02,8.02894792]
[1730012052304,12.02894792,173.08,173.03,2.8928]
[1730012052305,14.92114792,173.08,173.03,2.8928]
[1730012054302,8.02894792,173.06,173.03,2.8928]
[1730012054509,10.92144792,173.06,173.01,2.8932]
[1730012054696,8.02894792,173.04,173.0,8.02894792]
[1730012055804,4.0,173.08,173.0,8.02894792]
[1730012056005,8.02894792,173.06,173.0,8.02894792]
[1730012056508,8.02894792,173.06,173.02,2.893]
[1730012061214,8.02894792,173.04,172.96,6.4849]
[1730012061411,14.92184792,173.04,173.0,2.8934]
[1730012062208,12.02894792,173.04,173.0,2.8934]
[1730012062617,8.02894792,173.03,173.0,2.8934]
[1730012068428,10.92194792,173.03,172.98,2.8936]
[1730012069422,10.92194792,173.03,172.99,2.8936]
[1730012071320,8.02894792,173.03,172.99,2.8936]
[1730012073229,8.02894792,173.02,172.99,2.8936]
[1730012076432,10.92214792,173.02,172.97,2.8938]
[1730012077839,10.92214792,173.02,172.98,2.8938]
[1730012080232,4.0,173.01,172.98,2.8938]
[1730012084937,8.02894792,173.0,172.98,2.8938]
[1730012085132,8.02894792,173.0,172.95,8.02894792]
[1730012085333,8.02894792,173.0,172.96,9.43355634]
[1730012085334,8.02894792,172.98,172.96,9.43355634]
[1730012085539,8.02894792,172.98,172.96,2.8941]
[1730012086136,8.02894792,172.98,172.95,2.8942]
[1730012086338,12.02894792,172.98,172.96,6.54008199]
[1730012086644,12.02894792,172.98,172.95,2.8942]
[1730012086844,12.02894792,172.98,172.96,6.54011431]
[1730012087039,12.02894792,172.98,172.95,2.8942]
[1730012087239,8.02894792,172.97,172.92,8.02894792]
[1730012087443,8.02894792,172.97,172.93,6.54143664]
[1730012087639,8.02894792,172.97,172.94,6.54143664]
[1730012087840,8.02894792,172.97,172.91,8.02894792]
[1730012088046,8.02894792,172.97,172.94,2.8944]
[1730012090644,8.02894792,172.97,172.92,8.02894792]
[1730012090847,8.02894792,172.97,172.93,5.09160999]
[1730012091049,8.02894792,172.97,172.92,8.02894792]
[1730012091246,8.02894792,172.97,172.93,6.5386049]
[1730012091445,8.02894792,172.97,172.92,8.02894792]
[1730012091641,4.0,172.98,172.93,14.56742092]
[1730012091851,4.0,172.98,172.94,6.53695521]
[1730012092038,8.02894792,172.99,172.95,5.08943117]
[1730012092246,4.0,172.99,172.96,8.02894792]
[1730012092653,4.0,173.0,172.96,8.02894792]
[1730012094351,4.0,173.0,172.98,2.8937]
[1730012094742,4.0,173.0,172.96,8.02894792]
[1730012094949,4.0,173.0,172.99,2.8936]
[1730012108162,2.4028,173.06,172.99,2.8936]
[1730012108163,4.0,173.03,173.0,2.8933]
[1730012108365,4.0,173.04,173.0,10.92224792]
[1730012109464,4.0,173.04,173.01,2.8932]
[1730012111573,4.0,173.04,173.0,8.02894792]
[1730012111767,4.0,173.04,173.02,2.893]
[1730012116078,8.02894792,173.05,173.02,2.893]
[1730012116276,12.02894792,173.05,173.02,2.893]
[1730012116476,4.0,173.05,173.04,2.8928]
[1730012116778,2.87900699,173.14,173.01,8.02894792]
[1730012116779,3.7876,173.13,173.01,8.02894792]
[1730012116981,8.02894792,173.08,173.01,8.02894792]
[1730012117573,10.92104792,173.08,173.04,2.8927]
[1730012127988,8.02894792,173.08,173.01,8.02894792]
[1730012128188,2.8923,173.07,173.03,2.8928]
[1730012128785,2.8923,173.07,173.04,2.8928]
[1730012129193,2.5336,173.08,173.04,2.8928]
[1730012129488,13.45464792,173.08,173.04,2.8928]
[1730012139090,5.4257,173.08,173.04,2.8928]
[1730012139302,13.45464792,173.08,173.04,2.8928]
[1730012141507,5.4257,173.08,173.04,2.8928]
[1730012142404,2.8923,173.07,173.04,2.8928]
[1730012148012,5.4257,173.08,173.05,2.8926]
[1730012148208,4.0,173.09,173.05,2.8926]
[1730012148405,8.02894792,173.11,173.04,8.02894792]
[1730012148608,4.0,173.1,173.06,8.02894792]
[1730012148810,4.0,173.1,173.07,8.02894792]
[1730012150011,4.0,173.1,173.08,2.892]
[1730012156724,2.892,173.09,173.05,2.8925]
[1730012157020,2.892,173.09,173.06,8.02894792]
[1730012158318,2.892,173.09,173.06,10.92134792]
[1730012159620,6.8918,173.1,173.06,10.92134792]
[1730012163328,4.0,173.1,173.07,2.8921]
[1730012169325,4.0,173.1,173.07,8.02894792]
[1730012169726,56.2,173.19,173.08,8.02894792]
[1730012169921,4.0,173.18,173.16,2.8907]
[1730012170133,4.0,173.18,173.15,8.02894792]
[1730012171037,2.8906,173.17,173.15,8.02894792]
[1730012171341,8.02894792,173.21,173.16,8.02894792]
[1730012171536,4.0,173.2,173.16,8.02894792]
[1730012171935,4.0,173.19,173.16,8.02894792]
[1730012173335,4.0,173.19,173.17,2.8906]
[1730012174531,4.0,173.19,173.16,10.91974792]
[1730012174732,4.0,173.19,173.16,8.02894792]
[1730012174931,4.0,173.2,173.16,8.02894792]
[1730012175441,4.0,173.2,173.16,10.91974792]
[1730012176336,2.8904,173.18,173.1,5.2351]
[1730012176540,2.8904,173.18,173.14,8.02894792]
[1730012177036,2.8903,173.19,173.14,10.92004792]
[1730012178834,2.8905,173.18,173.14,8.02894792]
[1730012179743,2.8905,173.18,173.14,10.92004792]
[1730012180736,12.02894792,173.2,173.14,10.92004792]
[1730012181034,2.8903,173.19,173.16,8.02894792]
[1730012181641,4.0,173.2,173.16,8.02894792]
[1730012181841,6.8901,173.2,173.16,10.91974792]
[1730012184445,4.0,173.2,173.17,2.8906]
[1730012184643,8.02894792,173.21,173.17,2.8906]
[1730012184836,4.0,173.2,173.17,2.8906]
[1730012186651,2.8901,173.21,173.17,8.02894792]
[1730012186851,3.7142,173.25,173.18,2.8904]
[1730012187049,12.02894792,173.24,173.19,8.02894792]
[1730012187257,2.8897,173.23,173.19,8.02894792]
[1730012188254,2.8897,173.23,173.2,2.89]
[1730012189159,10.91864792,173.23,173.19,10.91914792]
[1730012191261,4.0,173.22,173.19,10.91914792]
[1730012191957,12.02894792,173.26,173.21,8.02894792]
[1730012193360,2.8894,173.25,173.21,10.91884792]
[1730012193761,2.8895,173.24,173.2,2.8901]
[1730012193954,2.8895,173.24,173.2,10.91904792]
[1730012194866,2.8897,173.23,173.19,2.8902]
[1730012195165,8.02894792,173.22,173.18,8.02894792]
[1730012195561,10.91884792,173.22,173.18,8.02894792]
[1730012197064,2.8899,173.22,173.18,8.02894792]
[1730012197854,8.02894792,173.23,173.18,8.02894792]
[1730012198060,2.89,173.21,173.18,8.02894792]
[1730012198463,2.89,173.21,173.16,5.2482]
[1730012198768,2.89,173.21,173.18,8.02894792]
[1730012202476,2.8901,173.2,173.18,8.02894792]
[1730012207877,4.0,173.22,173.18,8.02894792]
[1730012208074,2.8901,173.21,173.18,8.02894792]
[1730012210072,2.5009,173.3,173.19,8.02894792]
[1730012210278,2.8895,173.24,173.22,8.02894792]
[1730012212984,2.8894,173.24,173.22,8.02894792]
[1730012213178,2.8894,173.24,173.2,2.8901]
[1730012213379,2.8894,173.24,173.2,10.91904792]
[1730012215577,4.0,173.25,173.2,8.02894792]
[1730012216480,8.02894792,173.24,173.2,8.02894792]
[1730012216980,2.8897,173.23,173.2,8.02894792]
[1730012217278,4.0,173.24,173.2,8.02894792]
[1730012217483,6.8896,173.24,173.21,2.8899]
[1730012218380,6.8896,173.24,173.22,8.02894792]
[1730012220586,2.8897,173.23,173.2,8.02894792]
[1730012221576,6.8895,173.24,173.2,10.91904792]
[1730012222487,4.0,173.24,173.21,10.91884792]
[1730012226593,2.8893,173.25,173.21,10.91884792]
[1730012226795,6.8893,173.25,173.21,10.91884792]
[1730012229499,4.0,173.25,173.2,8.02894792]
[1730012229699,2.8896,173.24,173.2,8.02894792]
[1730012230288,2.8896,173.24,173.2,10.91894792]
[1730012230902,2.8895,173.24,173.2,10.91904792]
[1730012232795,6.8894,173.25,173.21,2.8898]
[1730012234607,4.0,173.25,173.2,8.02894792]
[1730012234806,2.8895,173.24,173.2,10.91904792]
[1730012235201,8.02894792,173.23,173.15,1.2481]
[1730012235600,8.02894792,173.23,173.18,8.02894792]
[1730012236910,2.8898,173.22,173.18,10.91924792]
[1730012237200,6.8901,173.21,173.17,2.8906]
[1730012237399,6.8901,173.21,173.18,8.02894792]
[1730012240708,1.2156,173.29,173.2,8.02894792]
[1730012240905,2.8897,173.23,173.2,8.02894792]
[1730012241108,8.02894792,173.26,173.22,8.02894792]
[1730012241109,4.0,173.24,173.22,8.02894792]
[1730012243106,4.0,173.24,173.21,2.8898]
[1730012243302,2.8896,173.23,173.19,2.8903]
[1730012243508,2.8896,173.23,173.19,10.91924792]
[1730012249709,2.8898,173.22,173.19,10.91924792]
[1730012250509,8.02894792,173.23,173.15,1.2481]
[1730012250715,2.8904,173.19,173.15,8.02894792]
[1730012251614,6.8901,173.2,173.16,2.8907]
[1730012252007,6.8901,173.2,173.16,10.91964792]
[1730012256416,6.8901,173.2,173.17,8.02894792]
[1730012262927,4.0,173.2,173.16,2.8907]
[1730012263233,2.8903,173.19,173.17,8.02894792]
[1730012266029,6.8902,173.2,173.17,8.02894792]
[1730012278137,2.8899,173.22,173.18,10.91934792]
[1730012278339,4.0,173.21,173.18,10.91934792]
[1730012280535,6.89,173.21,173.18,10.91934792]
[1730012280732,8.02894792,173.19,173.12,2.3949]
[1730012280936,8.02894792,173.19,173.14,8.02894792]
[1730012281138,2.8904,173.18,173.14,8.02894792]
[1730012281332,4.0,173.17,173.14,8.02894792]
[1730012281737,4.0,173.17,173.16,2.8908]
[1730012282936,4.0,173.17,173.15,8.02894792]
[1730012283141,4.0,173.17,173.15,10.91984792]
[1730012284035,4.0,173.17,173.15,2.8909]
[1730012284242,4.0,173.17,173.15,10.91984792]
[1730012286544,2.8898,173.22,173.18,2.8903]
[1730012286847,4.0,173.21,173.18,2.8903]
[1730012287049,4.0,173.21,173.18,10.91924792]
[1730012287345,4.0,173.21,173.19,2.8902]
[1730012287542,4.0,173.21,173.19,10.91914792]
[1730012288846,12.11304792,173.23,173.19,10.91914792]
[1730012289046,4.0,173.22,173.2,2.89]
[1730012290248,4.0,173.22,173.19,10.91914792]
[1730012290449,4.0,173.22,173.19,8.02894792]
[1730012291255,4.0,173.22,173.2,2.8901]
[1730012293938,4.0,173.22,173.19,8.02894792]
[1730012293939,4.0,173.22,173.19,10.91914792]
[1730012294351,10.91864792,173.23,173.19,10.91914792]
[1730012294352,21.48336529,173.38,173.19,8.02894792]
[1730012294545,12.02894792,173.29,173.24,2.8894]
[1730012295141,4.0,173.29,173.24,2.8894]
[1730012295342,8.02894792,173.28,173.24,2.8894]
[1730012295652,10.91794792,173.27,173.23,8.02894792]
[1730012295848,2.889,173.27,173.23,8.02894792]
[1730012296059,4.0,173.26,173.23,8.02894792]
[1730012296351,4.0,173.26,173.24,2.8894]
[1730012296852,4.0,173.26,173.23,8.02894792]
[1730012296853,6.8891,173.26,173.23,10.91854792]
[1730012297057,4.0,173.26,173.23,10.91854792]
[1730012297553,4.0,173.26,173.22,2.8897]
[1730012297554,6.8891,173.26,173.22,2.8897]
[1730012297759,12.02894792,173.26,173.22,8.02894792]
[1730012298449,2.8894,173.25,173.22,8.02894792]
[1730012300651,2.8894,173.25,173.21,2.8898]
[1730012300847,2.8894,173.25,173.22,8.02894792]
[1730012303659,4.0,173.26,173.22,8.02894792]
[1730012303857,4.0,173.26,173.23,8.02894792]
[1730012304261,4.0,173.26,173.24,2.8894]
[1730012306654,4.0,173.26,173.23,10.91854792]
[1730012307062,2.8895,173.24,173.13,4.0]
[1730012307362,2.8895,173.24,173.2,8.02894792]
[1730012308355,2.8895,173.24,173.21,2.8899]
[1730012308965,2.8895,173.24,173.2,8.02894792]
[1730012309167,2.8895,173.24,173.2,10.91904792]
[1730012309766,4.0,173.26,173.21,8.02894792]
[1730012310073,4.0,173.26,173.23,2.8896]
[1730012310765,14.91814792,173.26,173.22,2.8897]
[1730012311069,8.02894792,173.23,173.15,9.47493515]
[1730012311364,8.02894792,173.23,173.12,2.5576]
[1730012311365,12.02894792,173.22,173.16,8.02894792]
[1730012312068,12.02894792,173.22,173.18,10.91934792]
[1730012312069,4.0,173.22,173.18,10.91934792]
[1730012312257,12.02894792,173.22,173.18,10.91934792]
[1730012312460,12.02894792,173.22,173.16,8.02894792]
[1730012312665,8.02894792,173.2,173.16,8.02894792]
[1730012313268,2.8901,173.21,173.17,2.8906]
[1730012313460,10.91904792,173.21,173.17,2.8906]
[1730012315260,84.11946874,173.33,173.18,8.02894792]
[1730012315459,4.0,173.3,173.22,8.02894792]
[1730012315659,8.02894792,173.28,173.22,8.02894792]
[1730012316574,2.8893,173.26,173.22,8.02894792]
[1730012316867,4.2,173.25,173.22,8.02894792]
[1730012317365,2.8893,173.26,173.22,8.02894792]
[1730012317569,4.2,173.25,173.22,8.02894792]
[1730012318268,2.8893,173.26,173.22,8.02894792]
[1730012318465,4.2,173.24,173.22,8.02894792]
[1730012326281,4.2,173.24,173.21,10.91874792]
[1730012328177,7.0894,173.24,173.21,10.91874792]
[1730012330373,4.2,173.24,173.21,10.91874792]
[1730012330579,7.0893,173.25,173.21,10.91874792]
[1730012331376,4.2,173.25,173.23,2.8895]
[1730012331582,4.2,173.25,173.22,8.02894792]
[1730012332279,4.2,173.25,173.22,10.91864792]
[1730012332986,2.8892,173.26,173.22,10.91864792]
[1730012333282,5.34965015,173.35,173.18,2.4899]
[1730012333283,2.8883,173.32,173.26,2.889]
[1730012333585,12.22894792,173.34,173.29,8.02894792]
[1730012333885,4.2,173.33,173.29,8.02894792]
[1730012334078,12.22894792,173.33,173.29,8.02894792]
[1730012334280,57.3997,173.43,173.32,8.02894792]
[1730012334482,8.02894792,173.38,173.32,8.02894792]
[1730012334687,7.0873,173.37,173.34,8.02894792]
[1730012334879,4.2,173.36,173.34,8.02894792]
[1730012335080,4.2,173.36,173.31,2.8882]
[1730012335288,2.8878,173.35,173.3,10.91734792]
[1730012335589,4.2,173.34,173.31,8.02894792]
[1730012336179,2.8878,173.35,173.31,8.02894792]
[1730012336380,4.2,173.34,173.31,8.02894792]
[1730012336983,4.2,173.34,173.3,2.8884]
[1730012337289,4.2,173.34,173.31,8.02894792]
[1730012337484,7.0878,173.34,173.31,8.02894792]
[1730012337686,4.2,173.34,173.31,8.02894792]
[1730012338882,4.2,173.34,173.32,8.02894792]
[1730012339887,4.2,173.34,173.33,8.02894792]
[1730012340685,4.2,173.34,173.3,2.8883]
[1730012340989,2.8879,173.33,173.32,8.02894792]
[1730012341590,4.2,173.34,173.32,8.02894792]
[1730012341887,4.2,173.34,173.31,8.02894792]
[1730012342083,4.2,173.34,173.29,8.02894792]
[1730012342592,2.8883,173.31,173.29,8.02894792]
[1730012342790,4.2,173.3,173.29,8.02894792]
[1730012346288,7.1281,173.32,173.28,2.8887]
[1730012346683,4.24,173.32,173.31,8.02894792]
[1730012355392,4.24,173.32,173.29,2.8886]
[1730012355591,4.24,173.32,173.31,8.02894792]
[1730012361606,4.24,173.36,173.33,2.8879]
[1730012361900,4.24,173.36,173.35,8.02894792]
[1730012362105,2.8869,173.4,173.35,8.02894792]